fUSD/lending_fUSD_20240129
["ID","MTS","AMOUNT","RATE_DAILY","PERIOD"]
[312984257,1706563839595,-281.28,0.000402,4]
[312984258,1706563839605,-281.28,0.000402,4]
[312984259,1706563839614,-281.28,0.000402,4]
[312984260,1706563839624,-281.28,0.000402,4]
[312984261,1706563839633,-281.28,0.000402,4]
[312984262,1706563839645,-281.28,0.000402,4]
[312984263,1706563839654,-281.28,0.000402,4]
[312984264,1706563839664,-281.28,0.000402,4]
[312984265,1706563839673,-281.28,0.000402,4]
[312984266,1706563839682,-163.76,0.00040422,2]
[312984267,1706563839693,-702.09036543,0.00041,120]
[312984268,1706563839702,-534.50750058,0.00041095,120]
[312984269,1706563839714,-150.0,0.00041096,2]
[312984270,1706563839725,-1234.37103582,0.00041149,2]
[312984271,1706563839735,-1786.85,0.00041454,5]
[312984272,1706563839744,-1829.82,0.00041558,5]
[312984273,1706563839754,-160.3733538,0.00041589,15]
[312984274,1706563839764,-160.77400452,0.00041589,2]
[312984275,1706563839775,-1000.0,0.00041591,2]
[312984276,1706563839785,-501.45305311,0.00041626,2]
[312984277,1706563839795,-1831.4,0.00041693,5]
[312984278,1706563839805,-158.89,0.000417,2]
[312984279,1706563839814,-169.99,0.00041791,2]
[312984280,1706563839824,-1811.03,0.0004187,5]
[312984281,1706563839834,-25612.0371,0.00041881,7]
[312984282,1706563839843,-1592.755314,0.00041881,30]
[312984283,1706563839852,-306.682723,0.00041881,30]
[312984285,1706563839861,-1785.34,0.00042102,5]
[312984287,1706563839870,-376.14901022,0.00042171,16]
[312984288,1706563839880,-150.0,0.00042177,2]
[312984289,1706563839889,-156.08437384,0.00042433,15]
[312984290,1706563839898,-1000.0,0.000425,2]
[312984291,1706563839911,-986.69336465,0.00042756,11]
[312984292,1706563839921,-1000.0,0.0004298,2]
[312984293,1706563839931,-150.0,0.00043259,2]
[312984294,1706563839941,-582.0,0.00043506,7]
[312984295,1706563839951,-483.1,0.00043836,15]
[312984296,1706563839961,-169.99,0.00044055,2]
[312984297,1706563839970,-376.14901022,0.00044217,19]
[312984298,1706563839979,-160.37335377,0.00044292,19]
[312984299,1706563839990,-150.0,0.0004434,2]
[312984300,1706563840000,-501.45305311,0.00044558,2]
[312984301,1706563840010,-2001.68,0.000446,2]
[312984302,1706563840019,-663.94,0.00044899,15]
[312984303,1706563840029,-663.94,0.00044899,15]
[312984304,1706563840039,-663.94,0.00044899,15]
[312984305,1706563840049,-663.94,0.00044899,15]
[312984306,1706563840059,-663.94,0.00044899,15]
[312984307,1706563840068,-663.94,0.00044899,15]
[312984308,1706563840077,-663.94,0.00044899,15]
[312984309,1706563840087,-663.94,0.00044899,15]
[312984310,1706563840096,-663.94,0.00044899,15]
[312984311,1706563840106,-663.94,0.00044899,15]
[312984312,1706563840116,-281.28,0.000449,5]
[312984313,1706563840126,-281.28,0.000449,5]
[312984314,1706563840136,-281.28,0.000449,5]
[312984315,1706563840145,-281.28,0.000449,5]
[312984316,1706563840155,-281.28,0.000449,5]
[312984317,1706563840164,-281.28,0.000449,5]
[312984318,1706563840174,-281.28,0.000449,5]
[312984319,1706563840183,-281.28,0.000449,5]
[312984320,1706563840193,-281.28,0.000449,5]
[312984321,1706563840202,-281.28,0.000449,5]
[312984322,1706563840212,-281.28,0.000449,5]
[312984323,1706563840222,-281.28,0.000449,5]
[312984324,1706563840231,-281.28,0.000449,5]
[312984325,1706563840241,-281.28,0.000449,5]
[312984326,1706563840251,-281.28,0.000449,5]
[312984327,1706563840261,-281.28,0.000449,5]
[312984328,1706563840270,-281.28,0.000449,5]
[312984329,1706563840280,-281.28,0.000449,5]
[312984330,1706563840289,-281.28,0.000449,5]
[312984331,1706563840300,-281.28,0.000449,5]
[312984332,1706563840310,-253.05044787,0.00045,4]
[312984333,1706563840320,-201.60375986,0.00045,2]
[312984334,1706563840329,-1824.0,0.00045,2]
[312984335,1706563840338,-1257.79,0.00045161,120]
[312984336,1706563840347,-150.0,0.00045422,2]
[312984337,1706563840357,-2000.0,0.00045701,4]
[312984338,1706563840366,-1824.6,0.00045826,5]
[312984339,1706563840375,-986.69336465,0.00045971,12]
[312984340,1706563840385,-2001.68,0.00046105,2]
[312984341,1706563840394,-376.14901022,0.00046263,21]
[312984342,1706563840403,-169.99,0.00046319,2]
[312984343,1706563840413,-150.0,0.00046503,2]
[312984344,1706563840423,-256.31007928,0.00046575,120]
[312984345,1706563840437,-1500.0,0.000466,2]
[312984346,1706563840447,-160.37335377,0.00046995,22]
[312984347,1706563840457,-1000.0,0.00047278,2]
[312984348,1706563840466,-501.45305311,0.0004749,2]
[312984349,1706563840476,-483.1,0.00047572,15]
[312984350,1706563840486,-150.0,0.00047585,2]
[312984352,1706563840495,-2001.68,0.0004761,2]
[312984354,1706563840505,-198.0,0.0004789,2]
[312984355,1706563840515,-1514.19483785,0.00047943,6]
[312984356,1706563840525,-1514.19483785,0.00047943,6]
[312984357,1706563840535,-210.0,0.00047943,2]
[312984358,1706563840545,-2868.9973,0.00047943,2]
[312984359,1706563840554,-500.0,0.00047945,30]
[312984360,1706563840564,-500.0,0.0004799,4]
[312984361,1706563840574,-500.0,0.00047998,4]
[312984362,1706563840583,-800.0,0.00048,4]
[312984363,1706563840592,-500.0,0.00048007,4]
[312984364,1706563840601,-500.0,0.00048016,4]
[312984365,1706563840611,-500.0,0.00048025,4]
[312984366,1706563840621,-500.0,0.00048034,4]
[312984367,1706563840630,-500.0,0.00048042,4]
[312984368,1706563840640,-500.0,0.00048051,4]
[312984369,1706563840649,-500.0,0.0004806,4]
[312984370,1706563840658,-152.0,0.00048283,3]
[312984371,1706563840668,-376.14901022,0.00048309,24]
[312984372,1706563840680,-169.99,0.00048583,2]
[312984373,1706563840696,-150.0,0.00048666,2]
[312984374,1706563840709,-5000.0,0.0004898,7]
[312984375,1706563840721,-150.0,0.00049068,30]
[312984376,1706563840733,-150.0,0.00049068,30]
[312984377,1706563840745,-151.57872595,0.00049068,30]
[312984378,1706563840756,-150.0,0.00049068,30]
[312984379,1706563840767,-150.0,0.00049068,30]
[312984380,1706563840778,-150.0,0.00049068,30]
[312984381,1706563840790,-150.0,0.00049068,30]
[312984382,1706563840802,-150.0,0.00049068,30]
[312984383,1706563840813,-284.78242836,0.00049068,30]
[312984384,1706563840825,-175.93656648,0.00049068,30]
[312984385,1706563840837,-151.79068332,0.00049068,30]
[312984386,1706563840849,-150.0,0.00049068,30]
[312984387,1706563840861,-152.20355608,0.00049068,30]
[312984388,1706563840872,-2001.68,0.00049115,2]
[312984389,1706563840884,-150.0,0.00049159,30]
[312984390,1706563840895,-986.69336465,0.00049185,14]
[312984391,1706563840905,-150.0,0.0004925,30]
[312984392,1706563840920,-495.16,0.00049305,10]
[312984393,1706563840932,-200.0,0.00049315,60]
[312984394,1706563840945,-150.0,0.00049341,30]
[312984395,1706563840957,-150.0,0.00049431,30]
[312984396,1706563840968,-150.0,0.00049522,30]
[312984397,1706563840980,-5104.4915927,0.000496,30]
[312984398,1706563840992,-281.28,0.000496,6]
[312984399,1706563841004,-281.28,0.000496,6]
[312984400,1706563841016,-281.28,0.000496,6]
[312984401,1706563841028,-281.28,0.000496,6]
[312984402,1706563841040,-281.28,0.000496,6]
[312984403,1706563841050,-281.28,0.000496,6]
[312984404,1706563841061,-281.28,0.000496,6]
[312984405,1706563841072,-281.28,0.000496,6]
[312984406,1706563841086,-281.28,0.000496,6]
[312984407,1706563841099,-281.28,0.000496,6]
[312984408,1706563841110,-281.28,0.000496,6]
[312984409,1706563841123,-281.28,0.000496,6]
[312984410,1706563841135,-281.28,0.000496,6]
[312984411,1706563841146,-281.28,0.000496,6]
[312984412,1706563841158,-281.28,0.000496,6]
[312984413,1706563841168,-281.28,0.000496,6]
[312984414,1706563841180,-281.28,0.000496,6]
[312984415,1706563841191,-281.28,0.000496,6]
[312984416,1706563841203,-281.28,0.000496,6]
[312984417,1706563841215,-281.28,0.000496,6]
[312984418,1706563841226,-150.0,0.00049613,30]
[312984419,1706563841238,-150.0,0.00049674,30]
[312984420,1706563841250,-940.0,0.0004969,2]
[312984421,1706563841263,-160.37335377,0.00049697,26]
[312984422,1706563841276,-150.0,0.00049704,30]
[312984423,1706563841288,-150.0,0.00049748,2]
[312984424,1706563841301,-500.0,0.0004977,30]
[312984425,1706563841312,-500.0,0.0004977,30]
[312984426,1706563841322,-500.0,0.0004977,30]
[312984427,1706563841331,-23882.0,0.0004979,2]
[312984428,1706563841342,-14529.0,0.0004979,2]
[312984429,1706563841351,-150.0,0.00049795,30]
[312984430,1706563841362,-983.23127652,0.00049795,46]
[312984431,1706563841375,-150.0,0.00049886,30]
[312984432,1706563841386,-4778.5322,0.00049893,2]
[312984433,1706563841396,-245000.0,0.00049895,2]
[312984434,1706563841406,-1000.0,0.00049895,30]
[312984435,1706563841417,-500.0,0.00049895,2]
[312984436,1706563841430,-39338.543,0.00049895,2]
[312984437,1706563841443,-100000.0,0.00049895,2]
[312984438,1706563841453,-612.0433,0.00049895,2]
[312984439,1706563841464,-218.39209122,0.00049945,2]
[312984440,1706563841475,-150.0,0.00049977,30]
[312984441,1706563841485,-150.0,0.00049977,30]
[312984442,1706563841495,-1605.74091331,0.00049993,4]
[312984443,1706563841506,-155.0,0.00049993,4]
[312984444,1706563841516,-8337.98056249,0.00049993,5]
[312984445,1706563841526,-280.31627603,0.00049994,4]
[312984446,1706563841536,-199.03575703,0.00049994,4]
[312984447,1706563841546,-251.18209365,0.00049994,4]
[312984448,1706563841556,-288.7522356,0.00049995,4]
[312984449,1706563841566,-923.21879953,0.00049995,4]
[312984450,1706563841577,-728.469,0.00049995,4]
[312984451,1706563841587,-833.38123193,0.00049995,4]
[312984452,1706563841597,-4706.9627137,0.00049995,4]
[312984453,1706563841608,-313.53042964,0.00049996,4]
[312984454,1706563841618,-3011.67714353,0.00049996,20]
[312984455,1706563841629,-184.75257673,0.00049996,10]
[312984456,1706563841639,-260.66024595,0.00049996,4]
[312984457,1706563841651,-20695.99307877,0.00049996,14]
[312984458,1706563841661,-432.75226238,0.00049997,4]
[312984459,1706563841671,-2569.43701716,0.00049997,4]
[312984460,1706563841681,-1721.05641953,0.00049997,4]
[312984461,1706563841693,-412.5888739,0.00049997,2]
[312984462,1706563841703,-50085.14594652,0.00049998,4]
[312984463,1706563841713,-49735.3808414,0.00049998,4]
[312984464,1706563841723,-1081.11076799,0.0005,2]
[312984465,1706563841733,-359.89930562,0.0005,120]
[312984466,1706563841744,-2959.61158092,0.0005,4]
[312984467,1706563841754,-28928.88093057,0.0005,30]
[312984468,1706563841765,-7864.35272421,0.0005,4]
[312984469,1706563841775,-2803.86892119,0.0005,10]
[312984470,1706563841785,-570.32545003,0.0005,4]
[312984471,1706563841795,-150.0,0.0005,31]
[312984472,1706563841805,-1000.0,0.0005,7]
[312984473,1706563841816,-4629.55823254,0.0005,4]
[312984474,1706563841826,-1824.0,0.0005,30]
[312984475,1706563841836,-500.0,0.00050044,30]
[312984476,1706563841846,-500.0,0.00050044,30]
[312984477,1706563841858,-150.0,0.00050068,30]
[312984478,1706563841868,-1000.0,0.000501,2]
[312984479,1706563841878,-150.0,0.00050158,30]
[312984480,1706563841889,-150.0,0.00050158,30]
[312984481,1706563841899,-150.0,0.00050249,30]
[312984482,1706563841912,-150.0,0.0005028,30]
[312984483,1706563841923,-500.0,0.00050317,30]
[312984484,1706563841934,-859.63,0.00050317,30]
[312984485,1706563841944,-150.0,0.0005034,30]
[312984486,1706563841956,-376.14901022,0.00050354,27]
[312984487,1706563841965,-501.45305311,0.00050422,3]
[312984489,1706563841976,-150.0,0.00050431,30]
[312984491,1706563841988,-983.23127652,0.00050446,47]
[312984493,1706563841999,-151.013,0.00050498,60]
[312984495,1706563842009,-1000000.0,0.000505,120]
[312984497,1706563842020,-150.0,0.00050522,30]
[312984499,1706563842030,-500.0,0.0005059,30]
[312984501,1706563842041,-150.0,0.00050613,30]
[312984503,1706563842051,-2124.213288,0.0005062,2]
[312984505,1706563842061,-2023.15931912,0.000507,2]
[312984508,1706563842072,-150.0,0.00050704,30]
[312984509,1706563842082,-150.0,0.00050794,30]
[312984510,1706563842092,-150.0,0.00050829,2]
[312984511,1706563842103,-169.99,0.00050846,2]
[312984512,1706563842113,-500.0,0.00050863,30]
[312984513,1706563842124,-150.0,0.00050885,30]
[312984514,1706563842134,-150.0,0.00050885,30]
[312984515,1706563842145,-150.0,0.00050885,30]
[312984516,1706563842156,-150.0,0.00050885,30]
[312984517,1706563842166,-150.0,0.00050885,30]
[312984518,1706563842177,-151.013,0.00050898,60]
[312984519,1706563842188,-150.0,0.00050976,30]
[312984520,1706563842198,-1000000.0,0.00051,120]
[312984521,1706563842209,-150.0,0.00051,120]
[312984522,1706563842219,-150.0,0.00051067,30]
[312984523,1706563842229,-983.23127652,0.00051098,48]
[312984524,1706563842240,-96744.0,0.000511,120]
[312984525,1706563842250,-500.0,0.00051137,30]
[312984526,1706563842260,-151.0129,0.00051148,59]
[312984527,1706563842270,-150.0,0.00051158,30]
[312984528,1706563842281,-150.0,0.00051249,30]
[312984529,1706563842291,-150.0,0.00051249,30]
[312984530,1706563842301,-483.1,0.00051308,120]
[312984531,1706563842312,-150.0,0.0005134,30]
[312984532,1706563842324,-500.0,0.0005141,30]
[312984533,1706563842334,-150.0,0.00051431,30]
[312984534,1706563842346,-151.0129,0.00051448,59]
[312984535,1706563842357,-150.0,0.00051491,30]
[312984536,1706563842368,-276.84542602,0.000515,120]
[312984537,1706563842379,-160.07544071,0.000515,30]
[312984538,1706563842390,-1889.0,0.000515,7]
[312984539,1706563842400,-150.0,0.00051521,30]
[312984540,1706563842412,-1000.0,0.00051576,120]
[312984541,1706563842422,-150.0,0.00051612,30]
[312984542,1706563842432,-10000.0,0.00051642,4]
[312984543,1706563842443,-500.0,0.00051683,30]
[312984544,1706563842453,-3600.0,0.000517,120]
[312984545,1706563842463,-150.0,0.00051703,30]
[312984546,1706563842474,-983.23127652,0.00051749,49]
[312984547,1706563842484,-152.62701089,0.00051794,2]
[312984548,1706563842493,-150.0,0.00051794,30]
[312984549,1706563842503,-150.0,0.00051794,30]
[312984550,1706563842514,-150.0,0.00051794,30]
[312984551,1706563842524,-151.013,0.00051798,60]
[312984552,1706563842534,-150.0,0.00051885,30]
[312984553,1706563842544,-163180.99008928,0.000519,120]
[312984554,1706563842554,-196.01,0.000519,45]
[312984555,1706563842564,-150.0,0.00051911,2]
[312984556,1706563842574,-500.0,0.00051956,30]
[312984557,1706563842584,-150.0,0.00051976,30]
[312984558,1706563842594,-767.0,0.0005199,2]
[312984559,1706563842604,-466.0,0.0005199,2]
[312984560,1706563842614,-730152.48628124,0.00052,120]
[312984562,1706563843140,-269847.51371876,0.00052,120]
[312984563,1706563843149,-555975.06196186,0.00052,120]
[312984564,1706563843161,-21835.36749514,0.00052,120]
[312984565,1706563843176,-21002.49878263,0.00052,120]
[312984566,1706563843189,-3715.34189997,0.00052,120]
[312984567,1706563843200,-1072.41174151,0.00052,120]
[312984568,1706563843211,-404.09028032,0.00052,120]
[312984569,1706563843222,-9345.54492068,0.00052,120]
[312984572,1706563843452,-306.8801192,0.00052,120]
[312984602,1706563843728,-628.59994991,0.00052,120]
[312984620,1706563843880,-2313.49656001,0.00052,120]
[312984640,1706563844068,-35243.65719987,0.00052,120]
[312984655,1706563846164,-496.0,0.000505,7]
[312984656,1706563846173,-365.45188775,0.0005199,10]
[312984657,1706563846214,-47.17811225,0.0005199,10]
[312984658,1706563846223,-220005.18099142,0.00052,120]
[312984659,1706563846234,-10559.03947071,0.00052,120]
[312984660,1706563846250,-255.3972002,0.00052,120]
[312984661,1706563846348,-117337.43142657,0.00052,120]
[312984662,1706563846357,-163.84875825,0.00052054,2]
[312984663,1706563846368,-960.39447797,0.00052054,30]
[312984664,1706563846379,-1207.51589181,0.00052054,4]
[312984665,1706563846389,-3251.02415819,0.00052054,30]
[312984666,1706563846399,-2254.65193104,0.00052054,10]
[312984667,1706563846409,-2468.1195,0.00052054,4]
[312984668,1706563846418,-500.0,0.00052054,10]
[312984669,1706563846428,-168.39041318,0.00052054,7]
[312984670,1706563846438,-200.0,0.00052054,2]
[312984671,1706563846448,-2228.29021066,0.00052054,15]
[312984672,1706563846458,-548.25831137,0.00052054,20]
[312984673,1706563846467,-514.76972388,0.00052054,31]
[312984674,1706563846476,-516.86532648,0.00052054,31]
[312984675,1706563846485,-200.0,0.00052054,31]
[312984676,1706563846494,-500.0,0.00052054,31]
[312984677,1706563846503,-500.0,0.00052054,31]
[312984678,1706563846512,-500.0,0.00052054,31]
[312984679,1706563846522,-500.0,0.00052054,31]
[312984680,1706563846531,-400.77169994,0.00052054,31]
[312984681,1706563846541,-500.0,0.00052054,31]
[312984682,1706563846551,-500.0,0.00052054,31]
[312984683,1706563846559,-500.0,0.00052054,2]
[312984684,1706563846569,-500.0,0.00052054,31]
[312984685,1706563846578,-500.0,0.00052054,31]
[312984686,1706563846587,-500.0,0.00052054,31]
[312984687,1706563846596,-500.0,0.00052054,15]
[312984688,1706563846608,-500.0,0.00052054,2]
[312984689,1706563846618,-500.0,0.00052054,31]
[312984690,1706563846629,-500.0,0.00052054,31]
[312984691,1706563846638,-500.0,0.00052054,31]
[312984692,1706563846647,-500.0,0.00052054,31]
[312984693,1706563846657,-500.0,0.00052054,31]
[312984694,1706563846665,-500.0,0.00052054,2]
[312984695,1706563846674,-646.18818155,0.00052054,31]
[312984696,1706563846684,-500.0,0.00052054,31]
[312984697,1706563846695,-798.58,0.00052054,31]
[312984698,1706563846705,-500.0,0.00052054,31]
[312984699,1706563846714,-500.0,0.00052054,31]
[312984700,1706563846723,-627.69,0.00052054,7]
[312984701,1706563846731,-500.0,0.00052054,31]
[312984702,1706563846740,-500.0,0.00052054,31]
[312984703,1706563846749,-500.0,0.00052054,31]
[312984704,1706563846758,-500.0,0.00052054,31]
[312984705,1706563846768,-500.0,0.00052054,31]
[312984706,1706563846777,-500.0,0.00052054,31]
[312984707,1706563846786,-500.0,0.00052054,31]
[312984708,1706563846795,-500.0,0.00052054,31]
[312984709,1706563846804,-500.0,0.00052054,31]
[312984710,1706563846813,-500.0,0.00052054,31]
[312984711,1706563846822,-500.0,0.00052054,31]
[312984712,1706563846831,-500.0,0.00052054,31]
[312984713,1706563846840,-500.0,0.00052054,31]
[312984714,1706563846849,-500.0,0.00052054,31]
[312984715,1706563846858,-500.0,0.00052054,31]
[312984716,1706563846867,-500.0,0.00052054,31]
[312984717,1706563846875,-500.0,0.00052054,31]
[312984718,1706563846885,-500.0,0.00052054,31]
[312984719,1706563846894,-1000.0,0.00052054,31]
[312984720,1706563846903,-500.0,0.00052054,31]
[312984721,1706563846913,-500.0,0.00052054,31]
[312984722,1706563846923,-500.0,0.00052054,31]
[312984723,1706563846932,-154.64782644,0.00052054,2]
[312984724,1706563846943,-1105.16,0.00052054,2]
[312984725,1706563846953,-500.0,0.00052054,31]
[312984726,1706563846962,-500.0,0.00052054,31]
[312984727,1706563846971,-494.8248254,0.00052054,2]
[312984728,1706563846980,-500.0,0.00052054,31]
[312984729,1706563846990,-500.0,0.00052054,31]
[312984730,1706563847002,-3018.85,0.00052054,31]
[312984731,1706563847012,-500.0,0.00052054,31]
[312984732,1706563847021,-500.0,0.00052054,31]
[312984733,1706563847030,-500.0,0.00052054,31]
[312984734,1706563847043,-167.81610744,0.00052054,31]
[312984735,1706563847053,-500.0,0.00052054,31]
[312984736,1706563847062,-500.0,0.00052054,31]
[312984737,1706563847071,-500.0,0.00052054,31]
[312984738,1706563847081,-500.0,0.00052054,31]
[312984739,1706563847091,-500.0,0.00052054,31]
[312984740,1706563847100,-500.0,0.00052054,31]
[312984741,1706563847110,-675.63,0.00052054,31]
[312984742,1706563847119,-1041.77,0.00052054,31]
[312984743,1706563847128,-561.83538341,0.00052054,31]
[312984744,1706563847137,-500.0,0.00052054,31]
[312984745,1706563847147,-500.0,0.00052054,2]
[312984746,1706563847156,-537.35,0.00052054,31]
[312984747,1706563847166,-199.45955875,0.00052054,31]
[312984748,1706563847175,-500.0,0.00052054,31]
[312984749,1706563847184,-500.0,0.00052054,31]
[312984750,1706563847195,-500.0,0.00052054,31]
[312984751,1706563847204,-555.33282458,0.00052054,31]
[312984752,1706563847213,-500.0,0.00052054,31]
[312984753,1706563847222,-500.0,0.00052054,31]
[312984754,1706563847231,-500.0,0.00052054,31]
[312984755,1706563847240,-500.0,0.00052054,31]
[312984756,1706563847249,-500.0,0.00052054,31]
[312984757,1706563847258,-716.0,0.00052054,31]
[312984758,1706563847269,-500.0,0.00052054,31]
[312984759,1706563847278,-1170.46,0.00052054,31]
[312984760,1706563847287,-690.67,0.00052054,31]
[312984761,1706563847296,-500.0,0.00052054,31]
[312984762,1706563847306,-500.0,0.00052054,31]
[312984763,1706563847314,-500.0,0.00052054,31]
[312984764,1706563847323,-500.0,0.00052054,31]
[312984765,1706563847332,-500.0,0.00052054,31]
[312984766,1706563847342,-1028.34,0.00052054,7]
[312984767,1706563847351,-500.0,0.00052054,31]
[312984768,1706563847361,-608.29,0.00052054,31]
[312984769,1706563847370,-500.0,0.00052054,31]
[312984770,1706563847379,-1303.83,0.00052054,31]
[312984771,1706563847388,-500.0,0.00052054,31]
[312984772,1706563847398,-352.82372794,0.00052054,31]
[312984773,1706563847407,-500.0,0.00052054,31]
[312984774,1706563847417,-500.0,0.00052054,31]
[312984775,1706563847426,-500.0,0.00052054,31]
[312984776,1706563847435,-972.44,0.00052054,31]
[312984777,1706563847444,-500.0,0.00052054,31]
[312984778,1706563847454,-1332.13,0.00052054,7]
[312984779,1706563847463,-2336.99,0.00052054,31]
[312984780,1706563847472,-500.0,0.00052054,31]
[312984781,1706563847481,-1755.24,0.00052054,31]
[312984782,1706563847491,-4639.95,0.00052054,31]
[312984783,1706563847500,-843.3,0.00052054,31]
[312984784,1706563847511,-1862.17,0.00052054,5]
[312984785,1706563847521,-500.0,0.00052054,31]
[312984786,1706563847530,-3435.87,0.00052054,31]
[312984787,1706563847539,-660.79,0.00052054,31]
[312984788,1706563847548,-608.12,0.00052054,31]
[312984789,1706563847558,-500.0,0.00052054,7]
[312984790,1706563847567,-500.0,0.00052054,31]
[312984791,1706563847576,-500.0,0.00052054,31]
[312984792,1706563847586,-500.0,0.00052054,7]
[312984793,1706563847595,-500.0,0.00052054,31]
[312984794,1706563847604,-1081.96,0.00052054,31]
[312984795,1706563847613,-500.0,0.00052054,31]
[312984796,1706563847622,-2479.02,0.00052054,31]
[312984797,1706563847631,-640.1,0.00052054,31]
[312984798,1706563847641,-672.06,0.00052054,31]
[312984799,1706563847650,-615.27,0.00052054,31]
[312984800,1706563847659,-849.28,0.00052054,31]
[312984801,1706563847668,-500.0,0.00052054,31]
[312984802,1706563847677,-500.0,0.00052054,31]
[312984803,1706563847686,-500.0,0.00052054,31]
[312984804,1706563847696,-500.0,0.00052054,31]
[312984805,1706563847705,-500.0,0.00052054,31]
[312984806,1706563847714,-837.32,0.00052054,31]
[312984807,1706563847723,-500.0,0.00052054,31]
[312984808,1706563847732,-500.0,0.00052054,31]
[312984809,1706563847742,-849.39,0.00052054,31]
[312984810,1706563847751,-500.0,0.00052054,31]
[312984811,1706563847760,-500.0,0.00052054,31]
[312984812,1706563847769,-467.7000224,0.00052054,31]
[312984813,1706563847778,-652.38,0.00052054,31]
[312984814,1706563847787,-500.0,0.00052054,31]
[312984815,1706563847796,-712.79,0.00052054,31]
[312984816,1706563847806,-500.0,0.00052054,31]
[312984817,1706563847815,-500.0,0.00052054,31]
[312984818,1706563847826,-1445.15,0.00052054,31]
[312984819,1706563847972,-500.0,0.00052054,31]
[312984820,1706563847991,-500.0,0.00052054,31]
[312984821,1706563848001,-500.0,0.00052054,31]
[312984822,1706563848010,-1738.15,0.00052054,31]
[312984823,1706563848020,-710.1,0.00052054,31]
[312984824,1706563848029,-500.0,0.00052054,31]
[312984825,1706563848038,-500.0,0.00052054,31]
[312984826,1706563848047,-500.0,0.00052054,31]
[312984827,1706563848056,-500.0,0.00052054,31]
[312984828,1706563848065,-500.0,0.00052054,31]
[312984829,1706563848075,-634.01,0.00052054,31]
[312984830,1706563848084,-500.0,0.00052054,31]
[312984831,1706563848094,-678.09,0.00052054,31]
[312984832,1706563848104,-2822.66,0.00052054,31]
[312984833,1706563848113,-500.0,0.00052054,31]
[312984834,1706563848122,-1503.3,0.00052054,31]
[312984835,1706563848132,-500.0,0.00052054,31]
[312984836,1706563848141,-887.24,0.00052054,31]
[312984837,1706563848151,-500.0,0.00052054,31]
[312984838,1706563848161,-500.0,0.00052054,31]
[312984839,1706563848173,-500.0,0.00052054,31]
[312984840,1706563848182,-625.75,0.00052054,31]
[312984841,1706563848192,-500.0,0.00052054,31]
[312984842,1706563848202,-638.22,0.00052054,31]
[312984843,1706563848211,-500.0,0.00052054,31]
[312984844,1706563848221,-500.0,0.00052054,31]
[312984845,1706563848231,-500.0,0.00052054,31]
[312984846,1706563848241,-1209.53,0.00052054,31]
[312984847,1706563848251,-500.0,0.00052054,31]
[312984848,1706563848260,-2671.2,0.00052054,31]
[312984849,1706563848270,-500.0,0.00052054,31]
[312984850,1706563848279,-500.0,0.00052054,31]
[312984851,1706563848288,-500.0,0.00052054,31]
[312984852,1706563848297,-718.17,0.00052054,31]
[312984853,1706563848306,-360.99668462,0.00052054,31]